Cogmind - Beta 9.6 @@@ ROGUE MODE // 2020.08.09 @ 23:38:29 Player: Skitgris Result: Self-destructed Performance ------------- Evolutions (1) 500 Regions Visited (2) 400 Robots Destroyed (8) 40 Value Destroyed (276) 276 Prototype IDs (0) 0 Alien Tech Used (0) 0 Bonus (0) 0 TOTAL SCORE: 1216 Bonus ------- None Cogmind --------- Core Integrity 192/400 Matter 300/300 Energy 100/100 System Corruption 3% Temperature Cool (16) Movement Core (100) Ox1 Location -9/Materials Parts ------- > --- POWER (1) -------- (None) > --- PROPULSION (3) --- (None) > --- UTILITY (3) ------ Small Storage Unit > --- WEAPON (2) ------- (None) > --- INVENTORY (6) ---- Light Ion Engine Improved Ion Engine Wheel Compact Wheel Mining Laser Peak State ------------ > --- POWER ------------ Improved Ion Engine > --- PROPULSION ------- Aluminum Leg Aluminum Leg Aluminum Leg > --- UTILITY ---------- Small Storage Unit Sensor Array Signal Interpreter > --- WEAPON ----------- EM Pulse Gun Assault Rifle > --- INVENTORY -------- Light Ion Engine Improved Ion Engine Wheel Compact Wheel Light Assault Rifle Mining Laser [Rating: 10] Favorites ----------- Power Light Ion Engine Engine Light Ion Engine Propulsion Aluminum Leg Leg Aluminum Leg Wheel Wheel Utility Small Storage Unit Device Sensor Array Storage Small Storage Unit Processor Signal Interpreter Weapon Assault Rifle Energy Gun EM Pulse Gun Ballistic Gun Assault Rifle Build | -11 -10 -9 ------- Run | Scr Mat Mat Slots Evolved 2 | . . 2 Power . | . . . Propulsion 1 | . . 1 Utility 1 | . . 1 Weapon . | . . . Parts Attached 12 | 5 2 5 Power 2 | . 1 1 Engine 2 | . 1 1 Core . | . . . Reactor . | . . . Propulsion 4 | 2 . 2 Treads . | . . . Leg 3 | 2 . 1 Wheel 1 | . . 1 Hover . | . . . Flight . | . . . Utility 3 | 1 1 1 Device 1 | . 1 . Storage 1 | 1 . . Processor 1 | . . 1 Hackware . | . . . Protection . | . . . Artifact . | . . . Weapon 3 | 2 . 1 Energy Gun 1 | 1 . . Energy Cannon . | . . . Ballistic Gun 2 | 1 . 1 Ballistic Cannon . | . . . Launcher . | . . . Special Weapon . | . . . Impact Weapon . | . . . Slashing Weapon . | . . . Piercing Weapon . | . . . Special Melee Weapon . | . . . Unidentified Prototypes . | . . . Parts Lost 9 | . . 9 Power 1 | . . 1 Propulsion 3 | . . 3 Utility 2 | . . 2 Weapon 3 | . . 3 Highest Loss Streak 9 | . . 9 Average Slot Usage (%) 95 | . 96 95 Engine 11 | . 14 10 Leg 27 | . 28 27 Wheel 2 | . . 3 Device 10 | . 10 10 Storage 12 | . 14 11 Processor 6 | . . 10 Energy Gun 11 | . 14 10 Ballistic Gun 11 | . 14 10 Naked Turns . | . . . Heaviest Build 16 | 8 12 16 Greatest Support 30 | 20 20 30 Greatest Overweight (x) 1 | 1 . . Average Overweight (x) . | . . . Largest Inventory Capacity 6 | 6 6 6 Average Capacity 5 | 5 6 6 Most Carried 6 | 5 6 6 Average Carried 5 | 3 5 5 Final Capacity 6 | 6 6 6 Final Carried 6 | 5 6 5 Class Distribution -------------------- 100% | Mutant Dominant Class ---------------- Mutant | -10/Materials Mutant | -9/Materials Resources | -11 -10 -9 ----------- Run | Scr Mat Mat Matter Collected 370 | 236 31 103 Remotely . | . . . Salvage Created 342 | . 31 311 Parts 18 | . 1 17 Haulers Intercepted . | . . . Recyclers Shooed 1 | . . 1 Parts Field Recycled . | . . . Retrieved Matter . | . . . Parts Self-Destructed . | . . . Prevented . | . . . Kills | -11 -10 -9 ------- Run | Scr Mat Mat Combat Hostiles Destroyed 7 | . 1 6 Guns 5 | . . 5 AOE 2 | . 1 1 Classes Destroyed 4 | . 1 3 Watcher 1 | . . 1 Swarmer 1 | . . 1 Grunt 3 | . 1 2 Sentry 3 | . . 3 Best Kill Streak 3 | . 1 3 Combat Bots Only 3 | . 1 3 Max Kills in Single Turn 1 | . 1 1 Gunslinging . | . . . Exploded 1 | . 1 1 Melee . | . . . Uniques/NPCs Destroyed . | . . . Combat | -11 -10 -9 -------- Run | Scr Mat Mat Damage Taken 958 | . 20 938 Core 208 | . . 208 Absorbed by Shields . | . . . Core Remaining (%) 100 | 100 100 . Volleys Fired 32 | . 4 28 Largest 2 | . 2 2 Hottest 60 | . 60 60 Shots Fired 55 | . 8 47 Gun 55 | . 8 47 Cannon . | . . . Launcher . | . . . Special . | . . . Kinetic 32 | . 4 28 Thermal . | . . . Explosive . | . . . Electromagnetic 23 | . 4 19 Robot Hit Streak 6 | . 2 6 Robot Miss Streak 4 | . 4 4 Penetration Max . | . . . Secondary Targets . | . . . Shots Hit Robots 35 | . 3 32 Core Hits 17 | . 2 15 Critical Hits . | . . . Critical Kills . | . . . Critical Parts Destroyed . | . . . Melee Attacks . | . . . Impact . | . . . Slashing . | . . . Piercing . | . . . Sneak Attacks . | . . . Combat Hostiles . | . . . Follow-up Attacks . | . . . Damage Inflicted 615 | . 84 531 Guns 426 | . 37 389 Cannons . | . . . Explosions 189 | . 47 142 Melee . | . . . Ramming . | . . . Kinetic 220 | . . 220 Thermal 189 | . 47 142 Explosive . | . . . Electromagnetic 206 | . 37 169 Impact . | . . . Slashing . | . . . Piercing . | . . . Highest Corruption 3 | . . 3 Average Corruption 1 | . . 1 Corruption Purged . | . . . Overload Shots . | . . . Overflow Damage . | . . . Projectiles . | . . . Explosions . | . . . Melee . | . . . Knockbacks . | . . . Impact . | . . . Kinetic . | . . . Secondary . | . . . Self-Inflicted Damage 33 | . . 33 Shots 1 | . . 1 Rammed . | . . . Targets Rammed . | . . . Kicked . | . . . Crushed . | . . . Highest Temperature 38 | . 6 38 Average Temperature 11 | . 6 12 Received Heat Transfer 435 | . 12 423 Siege Activations . | . . . Robots Corrupted . | . . . Combat Hostiles . | . . . Parts Fried . | . . . Impact Corruptions . | . . . Robots Melted . | . . . Combat Hostiles . | . . . Parts Melted . | . . . Heat Transferred 200 | . 50 150 Parts Sabotaged . | . . . Parts Stolen . | . . . Parts Stripped . | . . . Power Chain Reactions 3 | . 1 2 Missiles Intercepted . | . . . Alert | -11 -10 -9 ------- Run | Scr Mat Mat Peak Influence 224 | . 30 224 Average Influence 86 | . 1 157 Maximum Alert Level 1 | . . 1 Low Security (%) 74 | 100 100 53 Level 1 25 | . . 46 Level 2 . | . . . Level 3 . | . . . Level 4 . | . . . Level 5 . | . . . High Security . | . . . Max Security . | . . . Squads Dispatched 2 | . 1 1 Investigation . | . . . Extermination . | . . . Reinforcement 2 | . 1 1 Assault . | . . . Garrison . | . . . Intercept . | . . . Construction Impeded . | . . . Haulers Reinforced . | . . . Stealth | -11 -10 -9 --------- Run | Scr Mat Mat Distress Signals 2 | . . 2 Communications Jammed . | . . . Distress Signals . | . . . Times Spotted 19 | . 2 17 Peak Tracking Total 9 | . 1 9 Tactical Retreats . | . . . Traps | -11 -10 -9 ------- Run | Scr Mat Mat Traps Triggered 1 | . . 1 Indirectly . | . . . Trap Hack Attempts . | . . . Triggered . | . . . Disarmed . | . . . Reprogrammed . | . . . Reused . | . . . Traps Extracted . | . . . Installed . | . . . Triggered . | . . . Machines | -11 -10 -9 ---------- Run | Scr Mat Mat Machines Disabled . | . . . Max in Single Turn . | . . . Machines Sabotaged . | . . . Garrisons Compromised . | . . . Overloaded Fab Kills . | . . . Fab Network Shutdowns . | . . . Hacking | -11 -10 -9 --------- Run | Scr Mat Mat Machines Accessed . | . . . Terminals . | . . . Fabricators . | . . . Repair Stations . | . . . Recycling Units . | . . . Scanalyzers . | . . . Garrison Access . | . . . Total Hacks . | . . . Successful . | . . . Failed . | . . . Catastrophic . | . . . Database Lockouts . | . . . Manual . | . . . Terminals . | . . . Fabricators . | . . . Repair Stations . | . . . Recycling Units . | . . . Scanalyzers . | . . . Garrison Access . | . . . Terminal Hacks . | . . . Fabricator Hacks . | . . . Repair Station Hacks . | . . . Recycling Unit Hacks . | . . . Scanalyzer . | . . . Garrison Access Hacks . | . . . Unauthorized Hacks . | . . . Terminals . | . . . Fabricators . | . . . Repair Stations . | . . . Recycling Units . | . . . Scanalyzers . | . . . Garrison Access . | . . . Data Cores Recovered . | . . . Used . | . . . Hacking Detections . | . . . Full Trace Events . | . . . Feedback Events . | . . . Feedback Blocked . | . . . Robot Schematics Acquired . | . . . Robots Built . | . . . Matter . | . . . Time . | . . . Total Robot Build Rating . | . . . Part Schematics Acquired . | . . . Parts Built . | . . . Matter . | . . . Time . | . . . Total Part Build Rating . | . . . Parts Repaired . | . . . Time . | . . . Parts Recycled . | . . . Recycled Matter . | . . . Retrieved Matter . | . . . Retrieved Components . | . . . Parts Scanalyzed . | . . . Part Schematics Acquired . | . . . Parts Damaged . | . . . Bothacking | -11 -10 -9 ------------ Run | Scr Mat Mat Used RIF Installer . | . . . Robots Hacked . | . . . Non-combat . | . . . Combat . | . . . Robot Hacks Applied . | . . . Relay Couplers Released . | . . . Robots Rewired . | . . . Allies Hacked . | . . . Hacks Repelled . | . . . Allies | -11 -10 -9 -------- Run | Scr Mat Mat Total Allies . | . . . Largest Group . | . . . Highest-Rated Group . | . . . Highest-Rated Ally . | . . . Total Orders . | . . . Ally Attacks . | . . . Total Damage . | . . . Kills . | . . . Allies Corrupted . | . . . Allies Melted . | . . . Intel | -11 -10 -9 ------- Run | Scr Mat Mat Robot Analysis Total . | . . . Derelict Logs Recovered . | . . . Drone Launches . | . . . Drone Recoveries . | . . . Exploration | -11 -10 -9 ------------- Run | Scr Mat Mat Turns Passed 510 | 64 166 280 Spaces Moved 308 | 45 120 143 Core 9 | 9 . . Treads . | . . . Legs 299 | 36 120 143 Wheels . | . . . Hover . | . . . Flight . | . . . Fastest Speed 50 | 50 120 120 Average Speed 118 | 111 120 120 Slowest Speed 120 | 120 120 120 Overloaded Moves . | . . . Propulsion Burnouts . | . . . Robots Hopped . | . . . Cave-ins Triggered 1 | . . 1 Exploration Rate (%) 19 | 4 31 22 Regions Visited 2 Branch Regions . Pre-discovered Areas . | . . . Known Exits Taken . | . . . Unknown Exits Taken 2 | 1 1 . Scrap Searched . | . . . Spaces Dug . | . . . Terrain Destroyed 9 | . 4 5 Melee . | . . . Projectile . | . . . AOE 9 | . 4 5 Actions | -11 -10 -9 --------- Run | Scr Mat Mat Total 399 | 59 135 205 Wait 27 | . 1 26 Move 306 | 44 119 143 Hop . | . . . Pick Up 18 | 10 6 2 Fast Attach 1 | . . 1 Attach 10 | 5 2 3 Detach . | . . . Swap 1 | . . 1 Drop 4 | . 3 1 Fire 32 | . 4 28 Melee . | . . . Ram . | . . . Kick . | . . . Crush . | . . . Escape Stasis . | . . . Rewire . | . . . Trap . | . . . Miscellaneous . | . . . Route ------- -11/Scrapyard -10/Materials (discovered 2 exits: [*Mat] / [*Min]) -9/Materials History --------- Turn | Location | Event 8 | -11/Scrapyard | Discovered new exit (range 15) 65 | -11/Scrapyard | Entered Materials 121 | -10/Materials | Discovered new exit (range 8) 191 | -10/Materials | Discovered new exit (range 7) 231 | -10/Materials | Entered another Materials area 231 | -9/Materials | Evolved 2 slots: Propulsion x1, Utility x1 310 | -9/Materials | Build established: Mutant 502 | -9/Materials | Crushed by falling debris 511 | -9/Materials | Self-destructed Last Messages --------------- 00491_ EM Pulse Gun destroyed. 00492_ U-05 Engineer lays Concrete. 00497_ Imp. Ion Engine destroyed. 00498_ Aluminum Leg destroyed. 00498_ Assault Rifle destroyed. 00499_ Aluminum Leg destroyed. 00501_ G-34 Mercenary destroyed. 00502_ The unstable cave ceiling collapses. 00502_ Crushed by falling debris. 00502_ Signal Interpreter destroyed. 00502_ System corrupted by crushing effect (+2). 00502_ U-05 Engineer lays Concrete. 00504_ Sensor Array destroyed. 00505_ Y-45 Defender destroyed. 00505_ U-05 Engineer lays Concrete. 00509_ Aluminum Leg destroyed. 00509_ U-05 Engineer lays Concrete. 00510_ Lgt. Assault Rifle destroyed. 00510_ U-05 Engineer builds a Door. 00511_ U-05 Engineer builds a Wall. Map ----- +----------------------------------------------------+ | ?????????????????????????????????????????????????? | | ?????????????????????????????????????????????????? | | ?????????????????????????????????????????????????? | | ?????????????????????????????????????????????????? | | ?????????????????????????????????????????????????? | | ?????????????????????????????????????????????????? | | ??????????????????????????????????# ?????????????? | | ??????????????????????????????????# ?????????????? | | ??????????????????????????????????# ?????????????? | | ??????????????????????????????????# ############## | | ??????????????????????????????????# | | ??????????????????????????? ????# | | ??????????????????????????? #???# | | ??????????????????????????? #???# """ """ """ | | ??????????????????????????? #???# """ """ """ | | ??????????????????????????? #???# """ """ """ | | ??????????????????????????# #???# | | ??????????????????????????# #???# | | ??????????????????????????# #???# | | ??????????????????????????# #???# "T" | | ??????????????????????????# #???# ############ | | ??????????????????????????# #???# #??????###?? | | ??????????????????????????# #???# #???? ?? | | ???????????????????????#### ##### #?? ???? | | ????????????????###########u # """ ""???? | | ????????????????# @g + """ ""???? | | ????????????????# g/gg g T # """ ""???? | | ????????????????# u#g #?? ???? | | ????????????????# #u ^ #???? ?? | | ?????????????############## """"" #########+## | | ?????????????# ####### """" | | ?????????????# """"" | | ?????????????# ! | | ?????????????# ######### | | ?????????????# ####### #??????????? | | ?????????????## ###?????######"T"#####??????????? | | ??????????????# #????????????#####??????????????? | | ??????????????# #???????????????????????????????? | | ??????????????# #???????????????????????????????? | | ??????????????# ???????????????????????????????? | | ??????????????# #???????????????????????????????? | | ??????????????# #???????????????????????????????? | | ??????????????# #???????????????????????????????? | | ?????????????? ???????????????????????????????? | | ?????????????? ???????????????????????????????? | | ?????????????? ???????????????????????????????? | | ?????????????? ???????????????????????????????? | | ??????????????# #???????????????????????????????? | | ??????????????? ????????????????????????????????? | | ??????????????? ????????????????????????????????? | +----------------------------------------------------+ Best States ------------- Heat Dissipation 28 Energy Generation 12 Energy Capacity 265 Matter Stores 300 Matter Capacity 300 Sight Range 16 Robot Scan Range 10 Terrain Scan Density 10 Evasion (%) 40 Item Schematics ----------------- None Robot Schematics ------------------ None Fabricated ------------ Nothing Alien Tech Used ----------------- None Achievements -------------- None Challenges ------------ None Game ------ Seed AssaultRestorationCoupler Manual? 0 Play Time 00:09:01 Cumulative 14.8 hours Start 2020.08.09 @ 23:29:53 End 2020.08.09 @ 23:38:29 Sessions 1 Manual Loads 0 Difficulty Rogue Special Mode None Game No. 26 Rogue 17 Adventurer 9 Explorer 0 Win Type - Total 0 Types 0/0/0/0/0/0/0 Lore% 5 Gallery% 21 Achievement% 14 Wizard Run 0 Options --------- ASCII 0 Keyboard 0 Movement Mouse Keybinds 0 Fullscreen 2 Font 36/X11 Map View 76x50 Tactical HUD 1 Map Filters NONE Filters NONE Steam 1 RUN: f047f74f-4972-4310-b1bc-cfba0ad2d310